Workbook

Sheet Char Sheet
C3: Sir Butterfingers | F3: 1
C4: Dork | F4: 0 | I4: =E13+F23 -> 9 | K4: =E16+C19 -> 5 | P4: =E16 -> 3
C5: 22 | I5: =C19+F23 -> 8 | K5: =C19+E28 -> 8 | P5: =E28 -> 6
C6: 0 | I6: =F19+E24 -> 10 | K6: =F23+E28 -> 12 | P6: =E28 -> 6
P7: =E16 -> 3
P9: =F19 -> 8
J10: =E16+C23 -> 9 | P10: =E28 -> 6
P11: =C19 -> 2
J12: =E13+E16 -> 6 | P12: =F19 -> 8
E13: 3 | K13: =J12/3 -> 2 | P13: =E16 -> 3
K14: =J12*2/3 -> 4 | P14: =C19 -> 2
K15: =J12/3 -> 2 | P15: =C23 -> 6
E16: 3 | K16: =J12/3 -> 2 | P16: =F23 -> 6
K17: =J12/2 -> 3 | P17: =E13 -> 3
K18: =J12/2 -> 3 | P18: =E13 -> 3
C19: 2 | F19: 8 | P19: =F23 -> 6
K20: =E24+E28 -> 8 | P20: =F23 -> 6
P21: =F23 -> 6
P22: =E28 -> 6
C23: 6 | F23: 6 | K23: =C19+E16 -> 5 | P23: =E24 -> 2
E24: 2 | P24: =F19 -> 8
K25: =C23+E24 -> 8 | P25: =E16 -> 3
P26: =E24 -> 2
P27: =E24 -> 2
E28: 6 | P28: =C19 -> 2
J29: None | L29: 0 | P29: =F23 -> 6
J30: Leather | L30: 2
P31: =E16 -> 3
J32: Leather | L32: 2
P33: =E28 -> 6
J34: Leather | L34: 2
P35: =E28 -> 6
J36: Leather | L36: 2
P37: =C19 -> 2
J38: Leather | L38: 2
B42: Shortsword | D42: =I4 -> 9 | E42: =E13 -> 1d10+3 | F42: 20 | G42: 1d6 | H42: 1 | J42: Fast | L42: - | M42: - | N42: - | O42: 25%
B43: Bow | D43: =I5 -> 8 | E43: =F19 -> 1d8+8 | F43: 20 | G43: 1d6 | H43: 1 | J43: Med | L43: 10 | M43: - | N43: 2 | O43: 40%
C53: 6' 4" | E53: 180lbs
D54: Big and hairy | P54: =C23 -> 6
P55: =C23 -> 6
P56: =C23+10 -> 16
P57: =E13 -> 3
P58: =C23+10 -> 16
P59: =C19+10 -> 12
P60: =F19+10 -> 18
P61: =F23+10 -> 16
P62: =F19 -> 8
P65: =E28+10 -> 16
P66: =E28+10 -> 16
P67: =E28+10 -> 16
P68: =F19+10 -> 18
P69: =E28+10 -> 16
P70: =F19 -> 8
P71: =F19+45 -> 53
P75: =C19+10 -> 12
P76: =F19 -> 8
P77: =F19+10 -> 18
P78: =E24+10 -> 12
P79: =E28+10 -> 16
P80: =E24+10 -> 12
P81: =C23+10 -> 16
P82: =E16+10 -> 13
P83: =F19 -> 8
P86: -
P87: -
P88: =F19+10 -> 18
P89: =E28+10 -> 16
P90: =C23+10 -> 16
P91: =C19+10 -> 12
P92: =C23+10 -> 16

Sheet Villain Sheets
A1: Name: | B1: Melee Dude 1 | J1: Name: | K1: Melee Dude 2
A2: Level: | B2: 10 | D2: Reflex: | E2: =B5+B8+(1/2*(B2-1)) -> 16 | H2: Attack | I2: Defense | J2: Level: | K2: 10 | M2: Reflex: | N2: =K5+K8+(1/2*(K2-1)) -> 20 | Q2: Attack | R2: Defense
D3: Will: | E3: =B9+B11+(1/2*(B2-1)) -> 8 | G3: Melee: | H3: =B4+B7+B2-1 -> 24 | I3: =B5+B8+B2-1 -> 20 | M3: Will: | N3: =K9+K11+(1/2*(K2-1)) -> 8 | P3: Melee: | Q3: =K4+K7+K2-1 -> 20 | R3: =K5+K8+K2-1 -> 24
A4: Str: | B4: 9 | G4: Ranged: | H4: =B7+B8+(1/2*(B2-1)) -> 17 | I4: =B8+B10+(1/2*(B2-1)) -> 12 | J4: Str: | K4: 5 | P4: Ranged: | Q4: =K7+K8+(1/2*(K2-1)) -> 17 | R4: =K8+K10+(1/2*(K2-1)) -> 12
A5: Fit: | B5: 5 | D5: Stamina: | E5: =B5+B9+(9*(B2-1)) -> 88 | G5: Magic: | H5: =B6+B11 -> 3 | I5: =B7+B10 -> 7 | J5: Fit: | K5: 9 | M5: Stamina: | N5: =K5+K9+(9*(K2-1)) -> 92 | P5: Magic: | Q5: =K6+K11 -> 3 | R5: =K7+K10 -> 7
A6: Int: | B6: 2 | D6: Wound: | E6: =B5+B4+(1/2*(B2-1)) -> 19 | G6: Psychic: | H6: =B7+B11 -> 7 | I6: =B6+B9 -> 4 | J6: Int: | K6: 2 | M6: Wound: | N6: =K5+K4+(1/2*(K2-1)) -> 19 | P6: Psychic: | Q6: =K7+K11 -> 7 | R6: =K6+K9 -> 4
A7: Wit: | B7: 6 | D7: Mana: | E7: =B11+B10 -> 2 | J7: Wit: | K7: 6 | M7: Mana: | N7: =K11+K10 -> 2
A8: Cla: | B8: 6 | F8: DR | G8: Armor: | J8: Cla: | K8: 6 | O8: DR | P8: Armor:
A9: Dep: | B9: 2 | D9: Head/Arms: | E9: =E6/3 -> 6 | G9: Awareness: | H9: =B10+4+B2-1 -> 14 | J9: Dep: | K9: 2 | M9: Head/Arms: | N9: =N6/3 -> 6 | P9: Awareness: | Q9: =K10+4+K2-1 -> 14
A10: Conn: | B10: 1 | D10: Torso: | E10: =(E6/3)*2 -> 12 | G10: Stealth: | H10: =B8+4+B2-1 -> 19 | J10: Conn: | K10: 1 | M10: Torso: | N10: =(N6/3)*2 -> 12 | P10: Stealth: | Q10: =K8+4+K2-1 -> 19
A11: Mag: | B11: 1 | D11: Legs: | E11: =E6/2 -> 9 | G11: Jump: | H11: =B4+2+B2-1 -> 20 | J11: Mag: | K11: 1 | M11: Legs: | N11: =N6/2 -> 9 | P11: Jump: | Q11: =K4+2+K2-1 -> 16
A13: Weapon | C13: Skill | D13: Damage | E13: Crit | F13: Speed | G13: Range | H13: Break | I13: Area | J13: Weapon | L13: Skill | M13: Damage | N13: Crit | O13: Speed | P13: Range | Q13: Break | R13: Area
A14: Stun Vibra Blade* | C14: =H3+B2-1 -> 33 | D14: =B4 -> 1d12+9 | E14: 1d6 | F14: Med | G14: - | H14: 20% | I14: - | J14: Vibra Blade | L14: =Q3+K2-1 -> 29 | M14: =K4 -> 1d12+5 | N14: 1d4 | O14: Med | P14: - | Q14: 20% | R14: -
A15: Blaster | C15: =H4+B2-1 -> 26 | D15: =B6 -> 2d8+2 | E15: 1d6 | F15: Med | G15: 30 | H15: 30% | I15: - | J15: Blaster | L15: =Q4+K2-1 -> 26 | M15: =K6 -> 2d8+2 | N15: 1d6 | O15: Med | P15: 30 | Q15: 30% | R15: -
A16: Grenade | C16: =H4+B2-1 -> 26 | D16: =B6 -> 3d8+2/2d8 | E16: 2d4/2 | F16: Slow | G16: 15 | H16: 40% | I16: 10 | J16: Grenade | L16: =Q4+K2-1 -> 26 | M16: =K6 -> 3d8+2/2d8 | N16: 2d4/2 | O16: Slow | P16: 15 | Q16: 40% | R16: 10
A20: Name: | B20: Ranged Dude 1 | J20: Name: | K20: Ranged Dude 2
A21: Level: | B21: 10 | D21: Reflex: | E21: =B24+B27+(1/2*(B21-1)) -> 12 | H21: Attack | I21: Defense | J21: Level: | K21: 10 | M21: Reflex: | N21: =K24+K27+(1/2*(K21-1)) -> 12 | Q21: Attack | R21: Defense
D22: Will: | E22: =B28+B30+(1/2*(B21-1)) -> 9 | G22: Melee: | H22: =B23+B26+(1/2*(B21-1)) -> 11 | I22: =B24+B27+(1/2*(B21-1)) -> 12 | M22: Will: | N22: =K28+K30+(1/2*(K21-1)) -> 9 | P22: Melee: | Q22: =K23+K26+(1/2*(K21-1)) -> 15 | R22: =K24+K27+(1/2*(K21-1)) -> 12
A23: Str: | B23: 1 | G23: Ranged: | H23: =B26+B27+B21-1 -> 20 | I23: =B27+B29+B21-1 -> 21 | J23: Str: | K23: 1 | P23: Ranged: | Q23: =K26+K27+K21-1 -> 24 | R23: =K27+K29+K21-1 -> 21
A24: Fit: | B24: 1 | D24: Stamina: | E24: =B24+B28+(6*(B21-1)) -> 57 | G24: Magic: | H24: =B25+B30 -> 11 | I24: =B26+B29 -> 11 | J24: Fit: | K24: 1 | M24: Stamina: | N24: =K24+K28+(6*(K21-1)) -> 57 | P24: Force: | Q24: =K25+K30 -> 7 | R24: =K26+K29 -> 15
A25: Int: | B25: 9 | D25: Wound: | E25: =B24+B23+(1/2*(B21-1)) -> 7 | G25: Psychic: | H25: =B26+B30 -> 7 | I25: =B25+B28 -> 11 | J25: Int: | K25: 5 | M25: Wound: | N25: =K24+K23+(1/2*(K21-1)) -> 7 | P25: Psychic: | Q25: =K26+K30 -> 11 | R25: =K25+K28 -> 7
A26: Wit: | B26: 5 | D26: Mana: | E26: =B30+B29 -> 8 | J26: Wit: | K26: 9 | M26: Mana: | N26: =K30+K29 -> 8
A27: Cla: | B27: 6 | F27: DR | G27: Armor: | J27: Cla: | K27: 6 | O27: DR | P27: Armor:
A28: Dep: | B28: 2 | D28: Head/Arms: | E28: =E25/3 -> 2 | G28: Awareness: | H28: =B29+4+B21-1 -> 19 | J28: Dep: | K28: 2 | M28: Head/Arms: | N28: =N25/3 -> 2 | P28: Awareness: | Q28: =K29+4+K21-1 -> 19
A29: Conn: | B29: 6 | D29: Torso: | E29: =(E25/3)*2 -> 4 | G29: Stealth: | H29: =B27+4+B21-1 -> 19 | J29: Conn: | K29: 6 | M29: Torso: | N29: =(N25/3)*2 -> 4 | P29: Stealth: | Q29: =K27+4+K21-1 -> 19
A30: Mag: | B30: 2 | D30: Legs: | E30: =E25/2 -> 3 | G30: Jump: | H30: =B23+2+B21-1 -> 12 | J30: Mag: | K30: 2 | M30: Legs: | N30: =N25/2 -> 3 | P30: Jump: | Q30: =K23+2+K21-1 -> 12
A32: Weapon | C32: Skill | D32: Damage | E32: Crit | F32: Speed | G32: Range | H32: Break | I32: Area | J32: Weapon | L32: Skill | M32: Damage | N32: Crit | O32: Speed | P32: Range | Q32: Break | R32: Area
A33: Vibra Blade | C33: =H22+B21-1 -> 20 | D33: =B23 -> 1d12+1 | E33: 1d4 | F33: Med | G33: - | H33: 20% | I33: - | J33: Vibra Blade | L33: =Q22+K21-1 -> 24 | M33: =K23 -> 1d12+1 | N33: 1d4 | O33: Med | P33: - | Q33: 20% | R33: -
A34: Blaster | C34: =H23+B21-1 -> 29 | D34: =B25 -> 2d8+9 | E34: 1d6 | F34: Med | G34: 30 | H34: 30% | I34: - | J34: Blaster | L34: =Q23+K21-1 -> 33 | M34: =K25 -> 2d8+5 | N34: 1d6 | O34: Med | P34: 30 | Q34: 30% | R34: -
A35: Grenade | C35: =H23+B21-1 -> 29 | D35: =B25 -> 3d8+9/2d8 | E35: 2d4/2 | F35: Slow | G35: 15 | H35: 40% | I35: 10 | J35: Grenade | L35: =Q23+K21-1 -> 33 | M35: =K25 -> 3d8+5/2d8 | N35: 2d4/2 | O35: Slow | P35: 15 | Q35: 40% | R35: 10

Sheet NPC Sheets
A1: Name: | B1: Ragnar the Angry
C2: Level: | D2: 10 | F2: Reflex: | G2: =D5+D8+(1/2*(D2-1)) -> 17 | J2: Attack | K2: Defense
A3: Portrait: | F3: Will: | G3: =D9+D11+(1/2*(D2-1)) -> 11 | I3: Melee: | J3: =D4+D7+D2-1 -> 25 | K3: =D5+D8+D2-1 -> 21
C4: Str: | D4: 10 | I4: Ranged: | J4: =D7+D8+(1/2*(D2-1)) -> 17 | K4: =D8+D10+(1/2*(D2-1)) -> 13
C5: Fit: | D5: 6 | F5: Stamina: | G5: =D5+D9+(9*(D2-1)) -> 89 | I5: Magic: | J5: =D6+D11 -> 6 | K5: =D7+D10 -> 8
C6: Int: | D6: 2 | F6: Wound: | G6: =D5+D4+(1/2*(D2-1)) -> 21 | I6: Psychic: | J6: =D7+D11 -> 10 | K6: =D6+D9 -> 4
C7: Wit: | D7: 6 | F7: Mana: | G7: =D11+D10 -> 6
C8: Cla: | D8: 6 | J8: Awareness: | K8: =D10+4+D2-1 -> 15
C9: Dep: | D9: 2 | F9: Armor: | G9: Leather | J9: Climb: | K9: =D5+2+(0.5*(D2-1)) -> 13
C10: Conn: | D10: 2 | H10: DR | J10: Examine: | K10: =D6+2+(0.5*(D2-1)) -> 9
C11: Mag: | D11: 4 | F11: Head/Arms: | G11: =G6/3 -> 7 | H11: 2 | J11: Hide: | K11: =D7+4+D2-1 -> 19
F12: Torso: | G12: =(G6/3)*2 -> 14 | H12: 2 | J12: Jump: | K12: =D4+2+(0.5*(D2-1)) -> 17
F13: Legs: | G13: =G6/2 -> 10 | H13: 2 | J13: Stealth: | K13: =D8+4+D2-1 -> 19
J14: Tracking: | K14: =D10+2+(0.5*(D2-1)) -> 9
C16: Weapon | E16: Skill | F16: Damage | G16: Crit | H16: Speed | I16: Range | J16: Break | K16: Area
C17: Broadsword | E17: =J3+D2-1 -> 34 | F17: =D4 -> 1d12+10 | G17: 1d6 | H17: Med | I17: - | J17: 25% | K17: -
C18: Laser Pistol | E18: =J4+D2-1 -> 26 | F18: =D6 -> 2d8+2 | G18: 1d6 | H18: Med | I18: 30 | J18: 30% | K18: -
C19: Grenade | E19: =J4+D2-1 -> 26 | F19: =D6 -> 3d8+2/2d8 | G19: 2d4/2 | H19: Slow | I19: 15 | J19: 40% | K19: 10
A22: Name: | B22: Phillipus the Eggheaded
C23: Level: | D23: 5 | F23: Reflex: | G23: =D26+D29+(1/2*(D23-1)) -> 7 | J23: Attack | K23: Defense
A24: Portrait: | F24: Will: | G24: =D30+D32+(1/2*(D23-1)) -> 10 | I24: Melee: | J24: =D25+D28+(1/2*(D23-1)) -> 7 | K24: =D26+D29+(1/2*(D23-1)) -> 7
C25: Str: | D25: 1 | I25: Ranged: | J25: =D28+D29+(1/2*(D23-1)) -> 8 | K25: =D29+D31+(1/2*(D23-1)) -> 8
C26: Fit: | D26: 3 | F26: Stamina: | G26: =D26+D30+(6*(D23-1)) -> 33 | I26: Magic: | J26: =D27+D32+D23-1 -> 14 | K26: =D28+D31+D23-1 -> 12
C27: Int: | D27: 8 | F27: Wound: | G27: =D26+D25+(1/2*(D23-1)) -> 6 | I27: Psychic: | J27: =D28+D32 -> 6 | K27: =D27+D30 -> 14
C28: Wit: | D28: 4 | F28: Mana: | G28: =D32+D31 -> 6
C29: Cla: | D29: 2 | J29: Awareness: | K29: =D31+4+D23-1 -> 12
C30: Dep: | D30: 6 | F30: Armor: | G30: Leather | J30: Climb: | K30: =D26+2+(0.5*(D23-1)) -> 7
C31: Conn: | D31: 4 | H31: DR | J31: Examine: | K31: =D27+4+D23-1 -> 16
C32: Mag: | D32: 2 | F32: Head/Arms: | G32: =G27/3 -> 2 | H32: 2 | J32: Hide: | K32: =D28+4+(1*(D23-1)) -> 12
F33: Torso: | G33: =(G27/3)*2 -> 4 | H33: 2 | J33: Jump: | K33: =D25+2+(0.5*(D23-1)) -> 5
F34: Legs: | G34: =G27/2 -> 3 | H34: 2 | J34: Stealth: | K34: =D29+2+(0.5*(D23-1)) -> 6
J35: Tracking: | K35: =D31+2+(0.5*(D23-1)) -> 8
C37: Weapon | E37: Skill | F37: Damage | G37: Crit | H37: Speed | I37: Range | J37: Break | K37: Area
C38: Broadsword | E38: =J24+D23-1 -> 11 | F38: =D25 -> 1d12+1 | G38: 1d6 | H38: Med | I38: - | J38: 25% | K38: -
C39: Laser Pistol | E39: =J25+D23-1 -> 12 | F39: =D27 -> 2d8+8 | G39: 1d6 | H39: Med | I39: 30 | J39: 30% | K39: -
C40: Grenade | E40: =J25+D23-1 -> 12 | F40: =D27 -> 3d8+8/2d8 | G40: 2d4/2 | H40: Slow | I40: 15 | J40: 40% | K40: 10
A43: Name: | B43: Stephan the Sneeeky
C44: Level: | D44: 7 | F44: Reflex: | G44: =D47+D50+(1/2*(D44-1)) -> 16 | J44: Attack | K44: Defense
A45: Portrait: | F45: Will: | G45: =D51+D53+(1/2*(D44-1)) -> 9 | I45: Melee: | J45: =D46+D49+(1/2*(D44-1)) -> 12 | K45: =D47+D50+(1/2*(D44-1)) -> 16
C46: Str: | D46: 3 | I46: Ranged: | J46: =D49+D50+(1*(D44-1)) -> 20 | K46: =D50+D52+(1*(D44-1)) -> 18
C47: Fit: | D47: 5 | F47: Stamina: | G47: =D47+D51+(7*(D44-1)) -> 51 | I47: Magic: | J47: =D48+D53 -> 8 | K47: =D49+D52 -> 10
C48: Int: | D48: 6 | F48: Wound: | G48: =D47+D46+(1/2*(D44-1)) -> 11 | I48: Psychic: | J48: =D49+D53 -> 8 | K48: =D48+D51 -> 10
C49: Wit: | D49: 6 | F49: Mana: | G49: =D53+D52 -> 6
C50: Cla: | D50: 8 | J50: Awareness: | K50: =D52+4+D44-1 -> 14
C51: Dep: | D51: 4 | F51: Armor: | G51: Leather | J51: Climb: | K51: =D47+4+(1*(D44-1)) -> 15
C52: Conn: | D52: 4 | H52: DR | J52: Examine: | K52: =D48+2+(0.5*(D44-1)) -> 11
C53: Mag: | D53: 2 | F53: Head/Arms: | G53: =G48/3 -> 4 | H53: 2 | J53: Hide: | K53: =D49+4+(1*(D44-1)) -> 16
F54: Torso: | G54: =(G48/3)*2 -> 7 | H54: 2 | J54: Jump: | K54: =D46+4+(1*(D44-1)) -> 13
F55: Legs: | G55: =G48/2 -> 6 | H55: 2 | J55: Stealth: | K55: =D50+4+(1*(D44-1)) -> 18
J56: Tracking: | K56: =D52+4+(1*(D44-1)) -> 14
C58: Weapon | E58: Skill | F58: Damage | G58: Crit | H58: Speed | I58: Range | J58: Break | K58: Area
C59: Broadsword | E59: =J45+D44-1 -> 18 | F59: =D46 -> 1d12+3 | G59: 1d6 | H59: Med | I59: - | J59: 25% | K59: -
C60: Laser Pistol | E60: =J46+D44-1 -> 26 | F60: =D48 -> 2d8+6 | G60: 1d6 | H60: Med | I60: 30 | J60: 30% | K60: -
C61: Grenade | E61: =J46+D44-1 -> 26 | F61: =D48 -> 3d8+6/2d8 | G61: 2d4/2 | H61: Slow | I61: 15 | J61: 40% | K61: 10
